fUST/lending_fUST_20251220
["ID","MTS","AMOUNT","RATE_DAILY","PERIOD"]
[399269889,1766224544392,-573.839765,0.00041096,120]
[399269890,1766224544431,-573.839765,0.00041096,120]
[399269891,1766224544463,-573.839765,0.00041096,120]
[399269892,1766224544496,-573.839765,0.00041096,120]
[399269893,1766224544528,-573.839765,0.00041096,120]
[399269894,1766224544560,-573.839765,0.00041096,120]
[399269895,1766224544592,-573.839765,0.00041096,120]
[399269896,1766224544624,-573.839765,0.00041096,120]
[399269897,1766224544659,-573.839765,0.00041096,120]
[399269898,1766224544692,-573.839768,0.00041096,120]
[399269899,1766224544727,-1000.0,0.00041123,120]
[399269900,1766224544760,-1000.0,0.0004115,120]
[399269901,1766224544794,-1000.0,0.00041178,120]
[399269902,1766224544825,-156.5,0.00041178,120]
[399269903,1766224544857,-500.0,0.0004118,60]
[399269904,1766224544890,-500.0,0.0004118,60]
[399269905,1766224544929,-500.0,0.0004118,60]
[399269906,1766224544963,-500.0,0.0004118,60]
[399269907,1766224544997,-500.0,0.0004118,60]
[399269908,1766224545032,-506.56350271,0.0004118,60]
[399269909,1766224545065,-479.44827971,0.0004118,30]
[399269910,1766224545100,-500.0,0.0004118,60]
[399269911,1766224545135,-500.0,0.0004118,60]
[399269912,1766224545176,-500.0,0.0004118,60]
[399269913,1766224545212,-500.0,0.0004118,30]
[399269914,1766224545252,-500.0,0.0004118,60]
[399269915,1766224545288,-500.0,0.0004118,30]
[399269916,1766224545323,-347.97595832,0.0004118,30]
[399269917,1766224545357,-500.0,0.00041187,120]
[399269918,1766224545394,-500.0,0.00041187,120]
[399269919,1766224545430,-1041.66666667,0.000412,120]
[399269920,1766224545465,-1000.0,0.00041205,120]
[399269921,1766224545500,-1000.0,0.00041232,120]
[399269922,1766224545534,-1000.0,0.0004126,120]
[399269923,1766224545567,-156.5,0.00041278,120]
[399269924,1766224545599,-1000.0,0.00041287,120]
[399269925,1766224545631,-500.0,0.00041293,30]
[399269926,1766224545663,-1000.0,0.00041315,120]
[399269927,1766224545695,-1000.0,0.00041342,120]
[399269928,1766224545727,-737.53,0.00041369,40]
[399269929,1766224545758,-1000.0,0.00041369,120]
[399269930,1766224545790,-156.5,0.00041378,120]
[399269931,1766224545822,-1000.0,0.00041397,120]
[399269932,1766224545854,-1000.0,0.00041424,120]
[399269933,1766224545888,-1000.0,0.00041452,120]
[399269934,1766224545927,-156.5,0.00041478,120]
[399269935,1766224545975,-1000.0,0.00041479,120]
[399269936,1766224546008,-1000.0,0.00041506,120]
[399269937,1766224546040,-1000.0,0.00041534,120]
[399269938,1766224546073,-1000.0,0.00041561,120]
[399269939,1766224546105,-156.5025791,0.00041578,120]
[399269940,1766224546137,-1000.0,0.00041589,120]
[399269941,1766224546171,-1000.0,0.00041616,120]
[399269942,1766224546205,-3000.0,0.00041639,60]
[399269943,1766224546241,-1000.0,0.00041643,120]
[399269944,1766224546276,-500.0,0.00041644,120]
[399269945,1766224546309,-1000.0,0.00041671,120]
[399269946,1766224546341,-1000.0,0.00041698,120]
[399269947,1766224546374,-500.0,0.00041724,30]
[399269948,1766224546406,-614.74002476,0.00041726,120]
[399269949,1766224546440,-1349.59791795,0.00041904,120]
[399269950,1766224546474,-500.0,0.00041917,65]
[399269951,1766224546508,-1000.0,0.00042,120]
[399269952,1766224546541,-200.0,0.00042,120]
[399269953,1766224546723,-328.53654765,0.00042,120]
[399269954,1766224546768,-200.0,0.00042,120]
[399269955,1766224546800,-301.45506983,0.00042,10]
[399269956,1766224546831,-633.20341805,0.00042,120]
[399269957,1766224546862,-150.0,0.00042,120]
[399269958,1766224546894,-413.98372073,0.00042018,120]
[399269959,1766224546925,-150.0,0.000421,120]
[399269960,1766224546957,-202.70608738,0.00042121,14]
[399269961,1766224546989,-404.98167516,0.00042121,7]
[399269962,1766224547023,-427.11382836,0.00042121,14]
[399269963,1766224547059,-187.16950934,0.00042121,14]
[399269964,1766224547094,-1555.86071232,0.00042121,14]
[399269965,1766224547129,-591.56599627,0.00042121,14]
[399269966,1766224547162,-1555.86071232,0.00042121,7]
[399269967,1766224547196,-426.68714122,0.00042121,7]
[399269968,1766224547230,-1557.41657303,0.00042121,14]
[399269969,1766224547263,-405.38665683,0.00042121,14]
[399269970,1766224547297,-213.82424278,0.00042121,7]
[399269971,1766224547329,-201.92761263,0.00042121,14]
[399269972,1766224547362,-590.97502124,0.00042121,7]
[399269973,1766224547394,-1555.86071232,0.00042121,7]
[399269974,1766224547431,-173.0,0.00042164,120]
[399269975,1766224547466,-500.0,0.00042187,30]
[399269976,1766224547502,-500.0,0.00042187,30]
[399269977,1766224547535,-3000.0,0.00042187,60]
[399269978,1766224547568,-737.53,0.00042191,41]
[399269979,1766224547602,-500.0,0.00042192,120]
[399269980,1766224547638,-1593.84,0.00042278,120]
[399269981,1766224547672,-173.98,0.000423,14]
[399269982,1766224547708,-151.62,0.00042318,120]
[399269983,1766224547743,-194.65,0.00042378,120]
[399269984,1766224547778,-1593.84,0.00042378,120]
[399269985,1766224547811,-480.0,0.000424,30]
[399269986,1766224547844,-151.64464496,0.00042418,120]
[399269987,1766224547878,-194.65,0.00042478,120]
[399269988,1766224547920,-1593.84,0.00042478,120]
[399269989,1766224547953,-194.65,0.00042578,120]
[399269990,1766224547989,-1594.14,0.00042578,120]
[399269991,1766224548024,-194.65,0.00042678,120]
[399269992,1766224548057,-167.0,0.00042716,120]
[399269993,1766224548092,-3000.0,0.00042735,60]
[399269994,1766224548126,-500.0,0.00042739,70]
[399269995,1766224548161,-500.0,0.0004274,120]
[399269996,1766224548198,-194.65,0.00042778,120]
[399269997,1766224548235,-2899.59,0.000428,14]
[399269998,1766224548274,-194.65,0.00042878,120]
[399269999,1766224548311,-586.90177,0.000429,120]
[399270000,1766224548345,-467.85584,0.000429,120]
[399270001,1766224548384,-349.43741,0.000429,120]
[399270002,1766224548420,-194.65,0.00042978,120]
[399270003,1766224548454,-889.90889708,0.00042999,120]
[399270004,1766224548489,-1000.0,0.00043,120]
[399270005,1766224548524,-500.0,0.00043,120]
[399270006,1766224548556,-506.78,0.00043,120]
[399270007,1766224548588,-150.0,0.00043,120]
[399270008,1766224548624,-737.53,0.00043013,42]
[399270009,1766224548658,-209.0,0.00043031,120]
[399270010,1766224548691,-186.0,0.00043031,120]
[399270011,1766224548722,-186.0,0.00043031,120]
[399270012,1766224548754,-209.0,0.00043031,120]
[399270013,1766224548786,-186.0,0.00043031,120]
[399270014,1766224548819,-194.65,0.00043078,120]
[399270015,1766224548854,-194.65,0.00043178,120]
[399270016,1766224548886,-3638.3451,0.0004322,30]
[399270017,1766224548921,-194.65,0.00043278,120]
[399270018,1766224548955,-500.0,0.00043288,120]
[399270019,1766224548988,-194.65,0.00043378,120]
[399270020,1766224549025,-194.65,0.00043478,120]
[399270021,1766224549061,-500.0,0.00043561,75]
[399270022,1766224549098,-194.65,0.00043578,120]
[399270023,1766224549132,-194.65,0.00043678,120]
[399270024,1766224549169,-500.0,0.00043717,30]
[399270025,1766224549205,-194.65,0.00043778,120]
[399270026,1766224549240,-1000.0,0.000438,90]
[399270027,1766224549275,-1000.0,0.000438,90]
[399270028,1766224549308,-1000.0,0.000438,90]
[399270029,1766224549342,-1000.0,0.000438,90]
[399270030,1766224549374,-515.0,0.000438,90]
[399270031,1766224549407,-3000.0,0.00043831,60]
[399270032,1766224549439,-737.53,0.00043835,43]
[399270033,1766224549472,-500.0,0.00043836,120]
[399270034,1766224549504,-500.0,0.00043836,120]
[399270035,1766224550272,1341.1,0.00043836,3]
[399270036,1766224550619,151.0,0.00032877,31]
[399270037,1766224551200,1523.74,0.00032877,10]
[399270038,1766224551528,297.297815,0.00032877,31]
[399270039,1766224551686,297.297815,0.00032877,31]
[399270040,1766224551794,297.297815,0.00032877,31]
[399270041,1766224551922,297.297815,0.00032877,31]
[399270042,1766224552096,297.297815,0.00032877,31]
[399270043,1766224552212,297.297815,0.00032877,31]
[399270044,1766224552393,297.297815,0.00032877,31]
[399270045,1766224552481,297.297815,0.00032877,31]
[399270046,1766224582619,-297.297815,0.00032877,31]
[399270047,1766224582655,-297.297815,0.00032877,31]
[399270048,1766224582689,-297.297815,0.00032877,31]
[399270049,1766224582721,-297.297815,0.00032877,31]
[399270050,1766224582754,-297.297815,0.00032877,31]
[399270051,1766224582786,-297.297815,0.00032877,31]
[399270052,1766224582820,-297.297815,0.00032877,31]
[399270053,1766224582851,-297.297815,0.00032877,31]
[399270054,1766224582883,-297.297815,0.00032877,31]
[399270055,1766224582916,-297.297815,0.00032877,31]
[399270056,1766224582951,-297.297815,0.00032877,31]
[399270057,1766224582983,-297.297819,0.00032877,31]
[399270058,1766224583014,-151.0,0.00032877,31]
[399270059,1766224583048,-151.0,0.00032877,31]
[399270060,1766224583082,-151.0,0.00032877,31]
[399270061,1766224583115,-151.0,0.00032877,31]
[399270062,1766224583148,-190.129053,0.00032877,31]
[399270063,1766224583203,-151.0,0.00043835,120]
[399270064,1766224583238,-151.0,0.00043835,120]
[399270065,1766224583274,-151.0,0.00043835,120]
[399270066,1766224583309,-151.0,0.00043835,120]
[399270067,1766224583342,-151.0,0.00043835,120]
[399270068,1766224583377,-151.0,0.00043835,120]
[399270069,1766224583412,-151.0,0.00043835,120]
[399270070,1766224583447,-151.0,0.00043835,120]
[399270071,1766224583483,-151.0,0.00043835,120]
[399270072,1766224583517,-151.0,0.00043835,120]
[399270073,1766224583551,-151.0,0.00043835,120]
[399270074,1766224583590,-151.0,0.00043835,120]
[399270075,1766224583623,-151.0,0.00043835,120]
[399270076,1766224583655,-151.0,0.00043835,120]
[399270077,1766224583687,-151.0,0.00043835,120]
[399270078,1766224583719,-151.0,0.00043835,120]
[399270079,1766224583751,-290.21495692,0.00043835,120]
[399270080,1766224583783,-844.0,0.00043836,60]
[399270081,1766224583817,-194.65,0.00043878,120]
[399270082,1766224583850,-1418.61144785,0.00043904,120]
[399270083,1766224583885,-194.65,0.00043978,120]
[399270084,1766224583921,-1000.0,0.00044,120]
[399270085,1766224583959,-200.0,0.00044,120]
[399270086,1766224583997,-3031.41,0.00044,120]
[399270087,1766224584031,-150.0,0.00044,120]
[399270088,1766224584069,-194.65,0.00044078,120]
[399270089,1766224584105,-194.65,0.00044178,120]
[399270090,1766224584143,-194.65,0.00044278,120]
[399270091,1766224584178,-503.23437422,0.00044296,30]
[399270092,1766224584212,-500.0,0.00044296,30]
[399270093,1766224584247,-500.0,0.00044323,30]
[399270094,1766224584281,-194.65,0.00044378,120]
[399270095,1766224584313,-500.0,0.00044383,80]
[399270096,1766224584344,-500.0,0.00044384,120]
[399270097,1766224584376,-1000.0,0.00044443,120]
[399270098,1766224584411,-194.65,0.00044478,120]
[399270099,1766224584445,-194.65,0.00044578,120]
[399270100,1766224584477,-737.53,0.00044657,44]
[399270101,1766224584510,-194.65,0.00044678,120]
[399270102,1766224584542,-521.23569729,0.000447,60]
[399270103,1766224584574,-194.65,0.00044778,120]
[399270104,1766224584607,-194.65,0.00044878,120]
[399270105,1766224584638,-200.0,0.00044879,120]
[399270106,1766224584670,-3000.0,0.00044927,60]
[399270107,1766224584702,-500.0,0.00044932,120]
[399270108,1766224584734,-194.65,0.00044978,120]
[399270109,1766224584767,-11999.999996,0.00045,30]
[399270110,1766224584798,-1094.75840598,0.00045,120]
[399270111,1766224584828,-395.794263,0.00045,120]
[399270112,1766224584858,-1011.80348803,0.00045,120]
[399270113,1766224584888,-506.01185317,0.00045,120]
[399270114,1766224584921,-1230.96742088,0.00045,120]
[399270115,1766224584953,-597.35668786,0.00045,120]
[399270116,1766224584984,-1090.57813956,0.00045,120]
[399270117,1766224585015,-241.0,0.00045,30]
[399270118,1766224585049,-150.0,0.00045,120]
[399270119,1766224585081,-676.06,0.00045,30]
[399270120,1766224585115,-585.28,0.00045,30]
[399270121,1766224585147,-632.13,0.00045,30]
[399270122,1766224585181,-235.59,0.00045,30]
[399270123,1766224585214,-194.65,0.00045078,120]
[399270124,1766224585249,-194.65,0.00045178,120]
[399270125,1766224585282,-500.0,0.00045205,85]
[399270126,1766224585315,-889.006766,0.00045205,120]
[399270127,1766224585348,-500.0,0.00045233,60]
[399270128,1766224585384,-194.65,0.00045278,120]
[399270129,1766224585575,-194.65,0.00045378,120]
[399270130,1766224585612,-194.65,0.00045478,120]
[399270131,1766224585648,-737.53,0.00045479,45]
[399270132,1766224585681,-500.0,0.00045479,120]
[399270133,1766224585714,-194.65,0.00045578,120]
[399270134,1766224585747,-194.65,0.00045678,120]
[399270135,1766224585781,-194.65,0.00045778,120]
[399270136,1766224585812,-500.0,0.00045821,60]
[399270137,1766224585846,-194.65,0.00045878,120]
[399270138,1766224585879,-834.34699783,0.000459,120]
[399270139,1766224585911,-1487.62497775,0.00045904,120]
[399270140,1766224585948,-194.65,0.00045978,120]
[399270141,1766224585982,-200.0,0.00046,120]
[399270142,1766224586015,-286.63498471,0.00046,30]
[399270143,1766224586048,-150.0,0.00046,120]
[399270144,1766224586080,-3000.0,0.00046023,60]
[399270145,1766224586114,-545.87135829,0.00046027,90]
[399270146,1766224586146,-500.0,0.00046027,120]
[399270147,1766224586181,-194.65,0.00046078,120]
[399270148,1766224586216,-194.65,0.00046178,120]
[399270149,1766224586250,-194.65,0.00046278,120]
[399270150,1766224586285,-737.53,0.00046301,46]
[399270151,1766224586318,-194.65,0.00046378,120]
[399270152,1766224586351,-194.65,0.00046478,120]
[399270153,1766224586383,-500.0,0.00046575,120]
[399270154,1766224586416,-500.0,0.00046575,120]
[399270155,1766224586451,-194.65,0.00046578,120]
[399270156,1766224586487,-194.65,0.00046678,120]
[399270157,1766224586522,-194.65,0.00046778,120]
[399270158,1766224586554,-500.0,0.00046862,60]
[399270159,1766224586593,-194.65,0.00046878,120]
[399270160,1766224586625,-166.22707201,0.00046887,90]
[399270161,1766224586658,-194.65,0.00046978,120]
[399270162,1766224586690,-500.0,0.00047,120]
[399270163,1766224586722,-150.0,0.00047,120]
[399270164,1766224586757,-194.65,0.00047078,120]
[399270165,1766224586790,-3000.0,0.00047119,60]
[399270166,1766224586823,-737.53,0.00047123,47]
[399270167,1766224586855,-519.95,0.00047123,120]
[399270168,1766224586888,-194.65,0.00047178,120]
[399270169,1766224586924,-676.06,0.0004725,30]
[399270170,1766224586955,-585.28,0.0004725,30]
[399270171,1766224586986,-632.13,0.0004725,30]
[399270172,1766224587019,-194.65,0.00047278,120]
[399270173,1766224587054,-194.65,0.00047378,120]
[399270174,1766224587097,-194.65,0.00047478,120]
[399270175,1766224587136,-194.65,0.00047578,120]
[399270176,1766224587171,-157.0,0.00047644,120]
[399270177,1766224587208,-194.65,0.00047678,120]
[399270178,1766224587245,-194.65,0.00047778,120]
[399270179,1766224587282,-194.65,0.00047878,120]
[399270180,1766224587317,-1556.63850764,0.00047904,120]
[399270181,1766224587350,-737.53,0.00047945,48]
[399270182,1766224587384,-194.65,0.00047978,120]
[399270183,1766224587417,-1000.0,0.00047999,120]
[399270184,1766224587449,-151.35350741,0.00048,120]
[399270185,1766224587482,-200.0,0.00048,120]
[399270186,1766224587521,-845.58,0.00048,120]
[399270187,1766224587572,-150.0,0.00048,120]
[399270188,1766224587625,-194.65,0.00048078,120]
[399270189,1766224587679,-194.65,0.00048178,120]
[399270190,1766224587728,-586.90177,0.000482,120]
[399270191,1766224587772,-467.85584,0.000482,120]
[399270192,1766224587822,-349.43741,0.000482,120]
[399270193,1766224587870,-3000.0,0.00048215,60]
[399270194,1766224587923,-194.65,0.00048278,120]
[399270195,1766224587971,-195.40322255,0.00048378,120]
[399270196,1766224588013,-300000.0,0.00048691,120]
[399270197,1766224588061,-737.53,0.00048767,49]
[399270198,1766224588104,-500.0,0.00048826,60]
[399270199,1766224588145,-3164.38391928,0.000489,120]
[399270200,1766224588191,-500.0,0.00049,120]
[399270201,1766224588238,-1022.0,0.00049,120]
[399270202,1766224588285,-400.0,0.00049,120]
[399270203,1766224588340,-180.9143095,0.00049,120]
[399270204,1766224588388,-1155.0,0.00049041,120]
[399270205,1766224588462,-152.0,0.00049278,120]
[399270206,1766224588535,-3000.0,0.00049311,60]
[399270207,1766224588596,-500.0,0.00049315,120]
[399270208,1766224588648,-500.0,0.00049315,120]
[399270209,1766224588696,-500.0,0.00049315,120]
[399270210,1766224588744,-500.0,0.00049315,120]
[399270211,1766224588788,-500.0,0.00049315,120]
[399270212,1766224588833,-500.0,0.00049315,120]
[399270213,1766224588874,-500.0,0.00049315,120]
[399270214,1766224588916,-500.0,0.00049315,120]
[399270215,1766224588965,-500.0,0.00049315,120]
[399270216,1766224589009,-500.0,0.00049315,120]
[399270217,1766224589063,-500.0,0.00049315,120]
[399270218,1766224589112,-500.0,0.00049315,120]
[399270219,1766224589160,-500.0,0.00049315,120]
[399270220,1766224589209,-500.0,0.00049315,120]
[399270221,1766224589257,-500.0,0.00049315,120]
[399270222,1766224589302,-500.0,0.00049315,120]
[399270223,1766224589346,-500.0,0.00049315,120]
[399270224,1766224589393,-500.0,0.00049315,120]
[399270225,1766224589439,-500.0,0.00049315,120]
[399270226,1766224589484,-500.0,0.00049315,120]
[399270227,1766224589530,-500.0,0.00049315,120]
[399270228,1766224589574,-500.0,0.00049315,120]
[399270229,1766224589618,-500.0,0.00049315,120]
[399270230,1766224589660,-500.0,0.00049315,120]
[399270231,1766224589697,-500.0,0.00049315,120]
[399270232,1766224589730,-500.0,0.00049315,120]
[399270233,1766224589763,-279.09864429,0.00049315,120]
[399270234,1766224589795,-500.0,0.00049315,120]
[399270235,1766224589826,-500.0,0.00049315,120]
[399270236,1766224589859,-500.0,0.00049315,120]
[399270237,1766224589893,-500.0,0.00049315,120]
[399270238,1766224589929,-500.0,0.00049315,120]
[399270239,1766224589964,-500.0,0.00049315,120]
[399270240,1766224590362,-500.0,0.00049315,120]
[399270241,1766224590400,-500.0,0.00049315,120]
[399270242,1766224590437,-500.0,0.00049315,120]
[399270243,1766224590473,-500.0,0.00049315,120]
[399270244,1766224590507,-500.0,0.00049315,120]
[399270245,1766224590539,-500.0,0.00049315,120]
[399270246,1766224590571,-500.0,0.00049315,120]
[399270247,1766224590604,-500.0,0.00049315,120]
[399270248,1766224590648,-511.88779857,0.00049315,120]
[399270249,1766224590689,-500.0,0.00049315,120]
[399270250,1766224590723,-500.0,0.00049315,120]
[399270251,1766224590761,-500.0,0.00049315,120]
[399270252,1766224590796,-300.0,0.00049315,120]
[399270253,1766224590831,-200.0,0.00049315,120]
[399270254,1766224590868,-500.0,0.00049315,120]
[399270255,1766224590902,-86239.59518486,0.0004943,120]
[399270256,1766224590936,-295.0821,0.000495,120]
[399270257,1766224590971,-737.53,0.00049589,50]
[399270258,1766224591006,-676.06,0.00049613,30]
[399270259,1766224591040,-585.28,0.00049613,30]
[399270260,1766224591075,-632.13,0.00049613,30]
[399270261,1766224591110,-1625.65203754,0.00049904,120]
[399270262,1766224591150,-500.0,0.00049964,60]
[399270263,1766224591186,-14062.47,0.0004999,120]
[399270264,1766224591224,-1000.0,0.00049999,120]
[399270265,1766224591261,-162.74949691,0.0005,120]
[399270266,1766224591298,-3728.49533935,0.0005,120]
[399270267,1766224591334,-434.07930578,0.0005,120]
[399270268,1766224591372,-79603.0,0.0005,120]
[399270269,1766224591408,-200.0,0.0005,120]
[399270270,1766224591444,-200.0,0.0005,120]
[399270271,1766224591479,-917.27453048,0.0005,120]
[399270272,1766224591516,-555.86151268,0.0005,120]
[399270273,1766224591549,-830.26649688,0.0005,120]
[399270274,1766224591583,-579.59972625,0.0005,120]
[399270275,1766224591617,-833.76229369,0.0005,120]
[399270276,1766224591650,-671.95277551,0.0005,120]
[399270277,1766224591683,-500.0,0.0005,120]
[399270278,1766224591717,-168.0,0.0005,120]
[399270279,1766224591751,-200.0,0.0005,120]
[399270280,1766224591784,-3000.0,0.00050407,60]
[399270281,1766224591818,-737.53,0.0005041,51]
[399270282,1766224591858,-500.0,0.00050604,120]
[399270283,1766224591890,-375.700852,0.00050822,30]
[399270284,1766224591926,-375.700852,0.00050822,30]
[399270285,1766224591959,-375.700852,0.00050822,30]
[399270286,1766224591992,-375.700852,0.00050822,30]
[399270287,1766224592028,-375.700852,0.00050822,30]
[399270288,1766224592062,-375.700852,0.00050822,30]
[399270289,1766224592096,-375.700852,0.00050822,30]
[399270290,1766224592133,-375.700852,0.00050822,30]
[399270291,1766224592170,-375.700852,0.00050822,30]
[399270292,1766224592207,-375.700852,0.00050822,30]
[399270293,1766224592244,-375.700852,0.00050822,30]
[399270294,1766224592282,-375.700852,0.00050822,30]
[399270295,1766224592322,-375.700852,0.00050822,30]
[399270296,1766224592358,-375.700852,0.00050822,30]
[399270297,1766224592397,-375.700852,0.00050822,30]
[399270298,1766224592437,-512.167666,0.00050822,30]
[399270299,1766224592473,-375.700852,0.00050822,30]
[399270300,1766224592510,-375.700852,0.00050822,30]
[399270301,1766224592543,-375.700852,0.00050822,30]
[399270302,1766224592576,-375.700852,0.00050822,30]
[399270303,1766224592608,-375.700852,0.00050822,30]
[399270304,1766224592640,-375.700852,0.00050822,30]
[399270305,1766224592674,-375.700852,0.00050822,30]
[399270306,1766224592707,-375.700852,0.00050822,30]
[399270307,1766224592739,-375.700852,0.00050822,30]
[399270308,1766224592771,-375.700852,0.00050822,30]
[399270309,1766224592805,-375.700852,0.00050822,30]
[399270310,1766224592836,-375.700852,0.00050822,30]
[399270311,1766224592867,-375.700852,0.00050822,30]
[399270312,1766224592899,-375.700852,0.00050822,30]
[399270313,1766224592930,-745.0466714,0.00050822,30]
[399270314,1766224592962,-375.700852,0.00050822,30]
[399270315,1766224592995,-192.1602908,0.00050959,30]
[399270316,1766224593030,-318.5131283,0.00050959,30]
[399270317,1766224593067,-302.6251609,0.00050959,30]
[399270318,1766224593104,-183.6987271,0.00050959,30]
[399270319,1766224593139,-183.6987271,0.00050959,30]
[399270320,1766224593176,-302.6251609,0.00050959,30]
[399270321,1766224593214,-183.6987271,0.00050959,30]
[399270322,1766224593252,-598.3641664,0.00050959,30]
[399270323,1766224593291,-595.6928235,0.00050959,30]
[399270324,1766224593331,-302.6251609,0.00050959,30]
[399270325,1766224593384,-183.6987271,0.00050959,30]
[399270326,1766224593436,-598.3641664,0.00050959,30]
[399270327,1766224593493,-598.3641664,0.00050959,30]
[399270328,1766224593541,-302.6251609,0.00050959,30]
[399270329,1766224593581,-598.3641664,0.00050959,30]
[399270330,1766224593621,-183.6987271,0.00050959,30]
[399270331,1766224593843,-598.3641664,0.00050959,30]
[399270332,1766224593887,-302.6251609,0.00050959,30]
[399270333,1766224593925,-598.3641664,0.00050959,30]
[399270334,1766224593961,-183.6987271,0.00050959,30]
[399270335,1766224593997,-598.3641664,0.00050959,30]
[399270336,1766224594030,-598.3641664,0.00050959,30]
[399270337,1766224594064,-302.6251609,0.00050959,30]
[399270338,1766224594098,-183.6987271,0.00050959,30]
[399270339,1766224594132,-302.6251609,0.00050959,30]
[399270340,1766224594167,-598.3641664,0.00050959,30]
[399270341,1766224594201,-183.6987271,0.00050959,30]
[399270342,1766224594238,-598.3641664,0.00050959,30]
[399270343,1766224594272,-598.3641664,0.00050959,30]
[399270344,1766224594306,-598.3641664,0.00050959,30]
[399270345,1766224594341,-598.3641664,0.00050959,30]
[399270346,1766224594378,-598.3641664,0.00050959,30]
[399270347,1766224594412,-773.2388866,0.00050959,30]
[399270348,1766224594446,-598.3641664,0.00050959,30]
[399270349,1766224594480,-598.3641664,0.00050959,30]
[399270350,1766224594513,-598.3641664,0.00050959,30]
[399270351,1766224594548,-100000.0,0.00051,50]
[399270352,1766224594582,-500.0,0.00051,120]
[399270353,1766224594615,-500.0,0.00051,120]
[399270354,1766224594649,-257.05887093,0.00051,120]
[399270355,1766224594684,-3000.0,0.00051,85]
[399270356,1766224594719,-3000.0,0.0005101,85]
[399270357,1766224594752,-3000.0,0.0005102,85]
[399270358,1766224594786,-3000.0,0.0005103,85]
[399270359,1766224594819,-3000.0,0.0005104,85]
[399270360,1766224594851,-3000.0,0.0005105,85]
[399270361,1766224594884,-3000.0,0.0005106,85]
[399270362,1766224594916,-5926.754221,0.0005107,85]
[399270363,1766224594955,-737.53,0.00051232,52]
[399270364,1766224594989,-3000.0,0.00051503,60]
[399270365,1766224595022,-500.0,0.00051639,120]
[399270366,1766224595056,-801.9925591,0.00051781,30]
[399270367,1766224595088,-734.4808462,0.00051781,30]
[399270368,1766224595122,-200.0,0.00051829,120]
[399270369,1766224595154,-1000.0,0.00051999,120]
[399270370,1766224595188,-100000.0,0.00052,90]
[399270371,1766224595220,-262.0,0.00052,120]
[399270372,1766224595252,-27647.79132185,0.00052,30]
[399270373,1766224595286,-200.0,0.00052,120]
[399270374,1766224595320,-500.0,0.00052,120]
[399270375,1766224595354,-737.55292075,0.00052054,53]
[399270376,1766224595388,-500.0,0.00052055,120]
[399270377,1766224595421,-676.06,0.00052093,30]
[399270378,1766224595454,-632.13,0.00052093,30]
[399270379,1766224595487,-585.28,0.00052093,30]
[399270380,1766224595519,-2928.57259831,0.00052599,60]
[399270381,1766224595550,-500.0,0.00052773,120]
[399270382,1766224595582,-962.6942354,0.000528,120]
[399270383,1766224595613,-1000.59942309,0.0005288,120]
[399270384,1766224595645,-752.73612,0.00052954,120]
[399270385,1766224595676,-1000.0,0.00052999,120]
[399270386,1766224595709,-101861.8013139,0.00053,120]
[399270387,1766224595741,-2644.081,0.00053,120]
[399270388,1766224595774,-5000.0,0.00053,120]